bitfinex/quotes_BTCUSD_20250212
["timestamp","ask_amount","ask_price","bid_price","bid_amount"]
[1739334564380,0.00122387,95430.0,95429.0,0.55770681]
[1739334564381,0.00022387,95430.0,95429.0,0.55770681]
[1739334564831,0.00122387,95430.0,95429.0,0.55770681]
[1739334569353,0.00022387,95430.0,95429.0,0.55770681]
[1739334569548,0.00122387,95430.0,95429.0,0.55770681]
[1739334569936,0.00022387,95430.0,95429.0,0.55770681]
[1739334570939,0.00122387,95430.0,95429.0,0.55770681]
[1739334572334,0.00022387,95430.0,95429.0,0.55770681]
[1739334572512,0.00022387,95430.0,95429.0,0.47530681]
[1739334573056,0.00122387,95430.0,95429.0,0.47530681]
[1739334573643,0.00022387,95430.0,95429.0,0.47530681]
[1739334573967,0.00122387,95430.0,95429.0,0.47530681]
[1739334575198,0.00122387,95430.0,95429.0,0.74690481]
[1739334575379,0.00122387,95430.0,95429.0,0.82620481]
[1739334577434,0.24094166,95456.0,95449.0,0.15715]
[1739334577636,0.24094166,95456.0,95449.0,0.03115]
[1739334577836,0.24094166,95456.0,95448.0,0.157152]
[1739334578186,0.157142,95455.0,95448.0,0.157152]
[1739334578737,0.013,95456.0,95448.0,0.15759737]
[1739334578939,0.018,95456.0,95449.0,0.20267248]
[1739334579118,0.005,95456.0,95449.0,0.20267248]
[1739334579328,0.013,95455.0,95449.0,0.04552148]
[1739334579524,0.018,95455.0,95449.0,0.04552148]
[1739334579730,0.018,95455.0,95454.0,0.157143]
[1739334579943,0.00022387,95463.0,95456.0,0.15714]
[1739334580356,0.00022387,95463.0,95453.0,0.19387044]
[1739334580671,0.00022387,95463.0,95457.0,0.209516]
[1739334580877,0.00022387,95463.0,95462.0,0.15713]
[1739334581078,0.00022387,95463.0,95453.0,0.40339644]
[1739334581243,0.00022387,95463.0,95454.0,0.157143]
[1739334581447,0.00022387,95463.0,95459.0,0.157134]
[1739334582635,0.00022387,95463.0,95460.0,0.157133]
[1739334582841,0.00822387,95463.0,95460.0,0.157132]
[1739334583012,0.00922387,95463.0,95460.0,0.157132]
[1739334583221,0.00122387,95463.0,95462.0,0.15713]
[1739334583394,0.00122387,95463.0,95462.0,0.03113]
[1739334583599,0.00622387,95463.0,95462.0,0.33204764]
[1739334583801,0.00522387,95463.0,95462.0,0.33100014]
[1739334583998,0.00022387,95463.0,95462.0,0.33100014]
[1739334584205,0.00222387,95463.0,95462.0,0.33100014]
[1739334584429,0.00022387,95463.0,95462.0,0.33100014]
[1739334584636,0.00022387,95463.0,95462.0,0.43350379]
[1739334584789,0.00222387,95463.0,95462.0,0.43350379]
[1739334586080,0.00022387,95463.0,95462.0,0.43350379]
[1739334586343,0.00122387,95463.0,95462.0,0.43350379]
[1739334586543,0.00122387,95463.0,95462.0,0.47810074]
[1739334586933,0.00022387,95463.0,95462.0,0.47710074]
[1739334587394,0.00122387,95463.0,95462.0,0.47910074]
[1739334587819,0.00122387,95463.0,95462.0,0.47710074]
[1739334587820,0.00022387,95463.0,95462.0,0.47710074]
[1739334588027,0.00122387,95463.0,95462.0,0.47910074]
[1739334589213,0.00022387,95463.0,95462.0,0.85447674]
[1739334589421,0.00022387,95463.0,95462.0,0.80163374]
[1739334589638,0.00122387,95463.0,95462.0,0.80263374]
[1739334590014,0.00222387,95463.0,95462.0,0.80263374]
[1739334590132,0.00222387,95463.0,95462.0,0.85113374]
[1739334590133,0.00122387,95463.0,95462.0,0.85113374]
[1739334590331,0.00222387,95463.0,95462.0,0.85213374]
[1739334590549,0.00122387,95463.0,95462.0,0.85213374]
[1739334590756,0.00222387,95463.0,95462.0,0.63604474]
[1739334592203,0.00122387,95463.0,95462.0,0.63604474]
[1739334592383,0.00022387,95463.0,95462.0,0.63504474]
[1739334592596,0.00122387,95463.0,95462.0,0.64788474]
[1739334592799,0.00122387,95463.0,95462.0,0.65188474]
[1739334593350,0.00122387,95463.0,95462.0,0.64788474]
[1739334593679,0.00222387,95463.0,95462.0,0.66088474]
[1739334594119,0.0798,95487.0,95486.0,0.157091]
[1739334595379,0.0799337,95487.0,95486.0,0.157091]
[1739334596076,0.0799337,95487.0,95486.0,0.20361248]
[1739334596572,0.0799337,95487.0,95486.0,0.26059465]
[1739334596731,0.0001337,95487.0,95486.0,0.26059465]
[1739334597140,0.0001337,95487.0,95486.0,0.28117121]
[1739334597619,0.0001337,95487.0,95486.0,0.28217121]
[1739334598396,0.0001337,95487.0,95486.0,0.32478457]
[1739334598755,0.0001337,95487.0,95486.0,0.32378457]
[1739334598924,0.00135736,95487.0,95486.0,0.32378457]
[1739334599080,0.00135736,95487.0,95486.0,0.32278457]
[1739334599495,0.00135736,95487.0,95486.0,0.32378457]
[1739334600298,0.00535736,95487.0,95486.0,0.32378457]
[1739334600918,0.00135736,95487.0,95486.0,0.32378457]
[1739334601123,0.00135736,95487.0,95486.0,0.32478457]
[1739334603706,0.00135736,95487.0,95486.0,0.32378457]
[1739334604000,0.00535736,95487.0,95486.0,0.32378457]
[1739334604615,0.00535736,95487.0,95486.0,0.42628822]
[1739334604616,0.00135736,95487.0,95486.0,0.42628822]
[1739334604822,0.00135736,95487.0,95486.0,0.32478457]
[1739334605064,0.00022366,95504.0,95503.0,0.157063]
[1739334605613,0.00022366,95504.0,95494.0,0.14757854]
[1739334605845,0.00022366,95504.0,95503.0,0.157063]
[1739334606019,0.00022366,95504.0,95503.0,0.17803384]
[1739334606229,0.00022366,95504.0,95503.0,0.23772162]
[1739334607472,0.00029361,95504.0,95503.0,0.23772162]
[1739334607694,0.00229361,95504.0,95503.0,0.11172162]
[1739334608063,0.00229361,95504.0,95503.0,0.08065862]
[1739334608451,0.00229361,95504.0,95503.0,0.23772162]
[1739334610349,0.00029361,95504.0,95503.0,0.23772162]
[1739334610880,0.00129361,95504.0,95503.0,0.23772162]
[1739334611039,0.00129361,95504.0,95503.0,0.27961012]
[1739334611203,0.00029361,95504.0,95503.0,0.27961012]
[1739334611414,0.00029361,95504.0,95503.0,0.38611377]
[1739334611610,0.00029361,95504.0,95503.0,0.32642599]
[1739334612040,0.00029361,95504.0,95503.0,0.32242599]
[1739334612238,0.00029361,95504.0,95503.0,0.32442599]
[1739334612445,0.00029361,95504.0,95503.0,0.32342599]
[1739334612870,0.00029361,95504.0,95503.0,0.32742599]
[1739334613127,0.00029361,95504.0,95503.0,0.32342599]
[1739334613283,0.00029361,95504.0,95503.0,0.42592964]
[1739334613484,0.00029361,95504.0,95503.0,0.42892964]
[1739334613687,0.00029361,95504.0,95503.0,0.42492964]
[1739334613865,0.00129361,95504.0,95503.0,0.43192964]
[1739334614071,0.00129361,95504.0,95503.0,0.43592964]
[1739334615166,0.00129361,95504.0,95503.0,0.35642599]
[1739334615885,0.00129361,95504.0,95503.0,0.66852099]
[1739334616166,0.00129361,95504.0,95503.0,0.33342599]
[1739334616318,0.00129361,95504.0,95503.0,0.34122599]
[1739334616746,0.00029361,95504.0,95503.0,0.33422599]
[1739334617122,0.00129361,95504.0,95503.0,0.51509613]
[1739334617526,0.00029361,95504.0,95503.0,0.39379248]
[1739334617724,0.00029361,95504.0,95503.0,0.39779248]
[1739334618009,0.00029361,95504.0,95503.0,0.40479248]
[1739334618010,0.00129361,95504.0,95503.0,0.40479248]
[1739334618426,0.00029361,95504.0,95503.0,0.39779248]
[1739334619128,0.00029361,95504.0,95503.0,0.39379248]
[1739334619329,0.00029361,95504.0,95503.0,0.29328883]
[1739334619574,0.07929361,95504.0,95503.0,0.2900932]
[1739334619771,0.08029361,95504.0,95503.0,0.08136649]
[1739334619920,0.08029361,95504.0,95503.0,0.01]
[1739334620332,0.07929361,95504.0,95503.0,0.003]
[1739334620542,0.07929361,95504.0,95502.0,0.04255931]
[1739334620749,0.07929361,95504.0,95503.0,0.003]
[1739334621120,0.23635461,95504.0,95503.0,0.005]
[1739334621806,0.23635461,95504.0,95503.0,0.002]
[1739334622130,0.27688977,95504.0,95503.0,0.002]
[1739334622314,0.27688977,95504.0,95495.0,0.157075]
[1739334622515,0.27788977,95504.0,95495.0,0.157075]
[1739334623010,0.27788977,95504.0,95503.0,0.003]
[1739334623228,0.27688977,95504.0,95503.0,0.003]
[1739334623681,0.27788977,95504.0,95495.0,0.157075]
[1739334623916,0.27788977,95504.0,94288.0,8e-05]
[1739334623917,0.079,95501.0,95481.0,0.157097]
[1739334624133,0.209439,95493.0,95472.0,0.01]
[1739334624306,0.209452,95487.0,95473.0,0.02049356]
[1739334624507,0.15711,95474.0,95466.0,0.07136649]
[1739334624691,0.079,95473.0,95466.0,0.157123]
[1739334624889,0.079,95473.0,95467.0,0.15712]
[1739334625481,0.079,95473.0,95466.0,0.04313847]
[1739334625482,0.157115,95472.0,95466.0,0.04313847]
[1739334625685,0.157124,95466.0,95462.0,0.0001065]
[1739334625881,0.0476,95472.0,95462.0,0.0001065]
[1739334625882,0.04757755,95472.0,95462.0,0.0001065]
[1739334626095,0.157116,95471.0,95463.0,0.1572345]
[1739334626293,0.04757755,95472.0,95463.0,0.04277801]
[1739334626497,0.157127,95464.0,95463.0,0.04277801]
[1739334626773,0.157127,95464.0,95463.0,0.0001065]
[1739334626985,0.157127,95464.0,95463.0,0.0021065]
[1739334627186,0.157127,95464.0,95463.0,0.0001065]
[1739334627998,0.158127,95464.0,95463.0,0.0061065]
[1739334628429,0.209488,95471.0,95463.0,0.0061065]
[1739334628642,0.157127,95465.0,95463.0,0.0061065]
[1739334629025,0.157127,95465.0,95463.0,0.0091065]
[1739334629262,0.157127,95465.0,95463.0,0.0061065]
[1739334629489,0.157127,95465.0,95463.0,0.0001065]
[1739334630501,0.157127,95465.0,95463.0,0.0041065]
[1739334630926,0.157127,95465.0,95463.0,0.0001065]
[1739334631338,0.0774,95464.0,95463.0,0.0001065]
[1739334631874,0.0774,95464.0,95463.0,0.0021065]
[1739334632042,0.1427517,95464.0,95463.0,0.0021065]
[1739334632196,0.0774,95464.0,95463.0,0.0001065]
[1739334632602,0.1249,95464.0,95463.0,0.0001065]
[1739334633249,0.37740365,95464.0,95463.0,0.0001065]
[1739334633576,0.38240365,95464.0,95463.0,0.0001065]
[1739334633705,0.39540365,95464.0,95463.0,0.0011065]
[1739334634104,0.38240365,95464.0,95463.0,0.0001065]
[1739334634327,0.4849073,95464.0,95463.0,0.0001065]
[1739334634547,0.38240365,95464.0,95463.0,0.0001065]
[1739334634759,0.41681955,95464.0,95463.0,0.0011065]
[1739334634957,0.41181955,95464.0,95463.0,0.0011065]
[1739334635152,0.41781955,95464.0,95463.0,0.0021065]
[1739334635665,0.41181955,95464.0,95463.0,0.0011065]
[1739334635886,0.3825442,95464.0,95463.0,0.0011065]
[1739334636097,0.3885442,95464.0,95463.0,0.0021065]
[1739334636227,0.28604055,95464.0,95463.0,0.0021065]
[1739334637075,0.28604055,95464.0,95463.0,0.0020625]
[1739334637850,0.26662465,95464.0,95436.0,0.209563]
[1739334638025,0.26662465,95464.0,95423.0,0.0078]
[1739334638026,0.157146,95453.0,95444.0,0.157158]
[1739334638254,0.15,95463.0,95444.0,0.157158]
[1739334638366,0.157147,95452.0,95440.0,0.18448613]
[1739334638576,0.157147,95452.0,95445.0,0.157158]
[1739334638785,0.157147,95452.0,95443.0,0.15716]
[1739334639261,0.157149,95451.0,95443.0,0.15716]
[1739334639485,0.11662465,95464.0,95440.0,0.03790759]
[1739334639486,0.0774,95450.0,95440.0,0.03790759]
[1739334639715,0.157161,95444.0,95440.0,0.03690759]
[1739334639916,0.157161,95444.0,95443.0,0.001]
[1739334639917,0.15716,95444.0,95443.0,0.001]
[1739334640121,0.157157,95446.0,95443.0,0.001]
[1739334640312,0.157158,95446.0,95443.0,0.001]
[1739334640520,0.157158,95446.0,95440.0,0.03690759]
[1739334640690,0.157158,95446.0,95440.0,0.03790759]
[1739334640898,0.0844,95450.0,95442.0,0.157162]
[1739334641098,0.0844,95450.0,95440.0,0.03790759]
[1739334641099,0.007,95450.0,95446.0,0.157156]
[1739334641279,0.007,95450.0,95447.0,0.157155]
[1739334641458,0.007,95450.0,95446.0,0.157156]
[1739334641863,0.20952,95457.0,95446.0,0.157156]
[1739334641864,0.157145,95454.0,95446.0,0.157156]
[1739334642084,0.157145,95454.0,95447.0,0.157155]
[1739334642328,0.209512,95460.0,95447.0,0.157155]
[1739334642532,0.002,95450.0,95445.0,0.157157]
[1739334642738,0.157145,95453.0,95446.0,0.157155]
[1739334642979,0.157145,95453.0,95444.0,0.366704]
[1739334643166,0.157145,95453.0,95446.0,0.001]
[1739334643551,0.157145,95453.0,95445.0,0.157158]
[1739334643770,0.004,95454.0,95440.0,0.03690759]
[1739334643975,0.0213522,95453.0,95440.0,0.03690759]
[1739334644137,0.209529,95452.0,95440.0,0.03690759]
[1739334644342,0.157155,95448.0,95446.0,0.001]
[1739334644543,0.157155,95447.0,95446.0,0.001]
[1739334645685,0.157155,95447.0,95440.0,0.03690759]
[1739334645865,0.001,95447.0,95440.0,0.03790759]
[1739334646082,0.157157,95446.0,95440.0,0.19507359]
[1739334646272,0.157157,95446.0,95440.0,0.03690759]
[1739334646850,0.006,95447.0,95441.0,0.157164]
[1739334647055,0.006,95447.0,95440.0,0.03690759]
[1739334647056,0.001,95447.0,95440.0,0.03690759]
[1739334647300,0.001,95447.0,95441.0,0.157165]
[1739334647503,0.004,95446.0,95441.0,0.157165]
[1739334648076,0.004,95446.0,95440.0,0.03701409]
[1739334648394,0.004,95446.0,95445.0,0.157158]
[1739334648795,0.157132,95462.0,95454.0,0.157142]
[1739334649199,0.04772366,95464.0,95450.0,0.14757854]
[1739334649398,0.00022366,95464.0,95453.0,0.209525]
[1739334649601,0.157137,95459.0,95450.0,0.30472654]
[1739334649782,0.03668657,95458.0,95450.0,0.14757854]
[1739334649994,0.157135,95460.0,95453.0,0.157144]
[1739334650594,0.01947729,95459.0,95453.0,0.157144]
[1739334651195,0.01947729,95459.0,95451.0,0.209531]
[1739334651196,0.01947729,95459.0,95454.0,0.157143]
[1739334651832,0.012,95458.0,95454.0,0.157143]
[1739334652327,0.01947729,95458.0,95454.0,0.157143]
[1739334652702,0.01947729,95458.0,95454.0,0.001]
[1739334652927,0.02147729,95458.0,95454.0,0.001]
[1739334653102,0.157141,95456.0,95450.0,0.0359547]
[1739334653304,0.22899329,95458.0,95449.0,0.157151]
[1739334653528,0.20952,95457.0,95445.0,0.03692126]
[1739334653703,0.03147729,95458.0,95454.0,0.001]
[1739334653910,0.05559848,95458.0,95454.0,0.001]
[1739334654315,0.0506552,95457.0,95454.0,0.001]
[1739334654518,0.157143,95455.0,95454.0,0.001]
[1739334655263,0.157143,95455.0,95447.0,0.157155]
[1739334655518,0.157144,95454.0,95447.0,0.157155]
[1739334655699,0.157144,95454.0,95449.0,0.001]
[1739334656050,0.22392035,95454.0,95447.0,0.157155]
[1739334656250,0.157148,95451.0,95444.0,0.15716]
[1739334656607,0.157148,95451.0,95443.0,0.157161]
[1739334656811,0.289729,95452.0,95443.0,0.157161]
[1739334657027,0.157153,95449.0,95441.0,0.157164]
[1739334657215,0.157157,95446.0,95440.0,0.035472]
[1739334657455,0.157155,95448.0,95440.0,0.192638]
[1739334657630,0.157155,95448.0,95440.0,0.035472]
[1739334657834,0.05929787,95448.0,95440.0,0.035472]
[1739334658043,0.157165,95441.0,95440.0,0.035472]
[1739334659331,0.16497713,95441.0,95440.0,0.03591737]
[1739334659724,0.16497713,95441.0,95440.0,0.03691737]
[1739334659927,0.21572797,95441.0,95440.0,0.03691737]
[1739334660085,0.23351563,95441.0,95440.0,0.03691737]
[1739334660287,0.23351563,95441.0,95440.0,0.00155187]
[1739334660574,0.23451563,95441.0,95440.0,0.00155187]
[1739334662602,0.21672797,95441.0,95440.0,0.00155187]
[1739334665057,0.21672797,95441.0,95440.0,0.15871787]
[1739334665058,0.05956297,95441.0,95440.0,0.15871787]
[1739334666099,0.05956297,95441.0,95440.0,0.17848922]
[1739334666276,0.02728942,95441.0,95440.0,0.17948922]
[1739334666476,0.02728942,95441.0,95440.0,0.28304059]
[1739334666477,0.02828942,95441.0,95440.0,0.28304059]
[1739334666677,0.14285229,95465.0,95440.0,0.21015188]
[1739334666907,0.14285229,95465.0,95457.0,0.157137]
[1739334667681,0.15,95466.0,95450.0,0.23111154]
[1739334667961,0.157129,95463.0,95441.0,0.10250365]
[1739334668239,0.15,95466.0,95441.0,0.10250365]
[1739334668240,0.157127,95464.0,95457.0,0.157138]
[1739334668444,0.15,95466.0,95442.0,0.509551]
[1739334668651,0.157119,95469.0,95450.0,0.14757854]
[1739334668910,0.15,95468.0,95460.0,0.157132]
[1739334669123,0.307121,95468.0,95460.0,0.157132]
[1739334669312,0.013,95463.0,95457.0,0.157137]
[1739334669613,0.0775,95462.0,95441.0,0.07136649]
[1739334669738,0.157132,95461.0,95441.0,0.07136649]
[1739334669948,0.0775,95462.0,95454.0,0.157143]
[1739334670568,0.157132,95461.0,95452.0,0.157145]
[1739334670787,0.157134,95460.0,95452.0,0.157145]
[1739334671194,0.157135,95459.0,95452.0,0.157145]
[1739334671654,0.157138,95458.0,95450.0,0.158149]
[1739334671859,0.157138,95458.0,95450.0,0.157149]
[1739334672262,0.209509,95461.0,95457.0,0.001]
[1739334672456,0.157136,95459.0,95457.0,0.001]
[1739334672583,0.209511,95460.0,95450.0,0.15715]
[1739334672779,0.209518,95457.0,95443.0,0.157161]
[1739334673037,0.0496512,95459.0,95441.0,0.10670939]
[1739334673238,0.157143,95455.0,95446.0,0.157156]
[1739334673466,0.157144,95454.0,95450.0,0.001]
[1739334673595,0.209518,95457.0,95450.0,0.001]
[1739334673800,0.007,95458.0,95450.0,0.001]
[1739334674005,0.007,95458.0,95456.0,0.15714]
[1739334674504,0.007,95458.0,95454.0,0.157142]
[1739334674710,0.007,95458.0,95453.0,0.157144]
[1739334674912,0.007,95458.0,95450.0,0.001]
[1739334675086,0.007,95458.0,95452.0,0.157146]
[1739334675290,0.007,95458.0,95456.0,0.15714]
[1739334675494,0.00022366,95461.0,95454.0,0.157142]
[1739334675751,0.007,95459.0,95455.0,0.22951915]
[1739334676347,0.001,95458.0,95455.0,0.157141]
[1739334676577,0.008,95458.0,95456.0,0.158139]
[1739334676877,0.007,95458.0,95456.0,0.158139]
[1739334677079,0.002,95459.0,95458.0,0.157137]
[1739334677222,0.002,95459.0,95458.0,0.26068811]
[1739334677432,0.009,95459.0,95458.0,0.25964065]
[1739334677814,0.007,95459.0,95458.0,0.25964065]
[1739334678685,0.00022366,95461.0,95460.0,0.157133]
[1739334678888,0.00022366,95461.0,95460.0,0.35340303]
[1739334680300,0.00022366,95461.0,95460.0,0.25963665]
[1739334680982,0.00022366,95461.0,95460.0,0.29507778]
[1739334681186,0.00022366,95461.0,95460.0,0.03544113]
[1739334681507,0.00022366,95461.0,95454.0,0.209523]
[1739334681742,0.00322366,95461.0,95456.0,0.15714]
[1739334681943,0.00322366,95461.0,95450.0,0.10790803]
[1739334682347,0.00022366,95461.0,95455.0,0.157141]
[1739334682551,0.00022366,95461.0,95460.0,0.001]
[1739334682759,0.00022366,95461.0,95450.0,0.18412008]
[1739334682963,0.00022366,95461.0,95460.0,0.002]
[1739334683164,0.00022366,95461.0,95455.0,0.209522]
[1739334683377,0.00322366,95461.0,95455.0,0.209522]
[1739334683584,0.00422366,95461.0,95457.0,0.157137]
[1739334683797,0.00322366,95461.0,95456.0,0.023]
[1739334684223,0.00422366,95461.0,95456.0,0.023]
[1739334684461,0.16035666,95461.0,95458.0,0.023]
[1739334684661,0.00322366,95461.0,95452.0,0.023]
[1739334684862,0.00322366,95461.0,95450.0,0.18412008]
[1739334685063,0.00322366,95461.0,95458.0,0.023]
[1739334685284,0.00322366,95461.0,95456.0,0.023]
[1739334685483,0.00322366,95461.0,95458.0,0.157136]
[1739334685830,0.00022366,95461.0,95458.0,0.157136]
[1739334686245,0.00522366,95461.0,95458.0,0.157136]
[1739334686443,0.00522366,95461.0,95458.0,0.157135]
[1739334686644,0.00022366,95461.0,95458.0,0.157135]
[1739334686850,0.00322366,95461.0,95458.0,0.157135]
[1739334687461,0.00022366,95461.0,95458.0,0.157135]
[1739334687638,0.00622366,95461.0,95454.0,0.209525]
[1739334687839,0.00522366,95461.0,95457.0,0.157138]
[1739334688034,0.00522366,95461.0,95458.0,0.180136]
[1739334688237,0.00522366,95461.0,95459.0,0.157135]
[1739334688640,0.00522366,95461.0,95460.0,0.157133]
[1739334689441,0.00022366,95461.0,95460.0,0.157133]
[1739334689745,0.00322366,95461.0,95460.0,0.157133]
[1739334690115,0.00022366,95461.0,95460.0,0.180133]
[1739334690522,0.00522366,95461.0,95460.0,0.180133]
[1739334690922,0.00022366,95461.0,95460.0,0.180133]
[1739334691162,0.00422366,95461.0,95460.0,0.180133]
[1739334691566,0.00322366,95461.0,95460.0,0.180133]
[1739334691808,0.00322366,95461.0,95460.0,0.181133]
[1739334691987,0.00322366,95461.0,95460.0,0.22465389]
[1739334692588,0.00022366,95461.0,95460.0,0.22365389]
[1739334693409,0.00022366,95461.0,95460.0,0.22465389]
[1739334693818,0.00022366,95461.0,95460.0,0.22365389]
[1739334693974,0.00022366,95461.0,95460.0,0.22565389]
[1739334694171,0.00222366,95461.0,95460.0,0.22365389]
[1739334694576,0.00222366,95461.0,95460.0,0.22465389]
[1739334695606,0.00022366,95461.0,95460.0,0.22465389]
[1739334696606,0.00022366,95461.0,95460.0,0.45505754]
[1739334696810,0.00782035,95477.0,95476.0,0.157107]
[1739334697025,0.00782035,95477.0,95476.0,0.180107]
[1739334697781,0.15990166,95494.0,95485.0,0.209455]
[1739334697981,0.0492,95495.0,95486.0,0.023]
[1739334698132,0.00011196,95494.0,95492.0,0.157079]
[1739334698340,0.00011196,95494.0,95485.0,0.180091]
[1739334698541,0.00011196,95494.0,95487.0,0.023]
[1739334698744,0.00011196,95494.0,95485.0,0.023]
[1739334698942,0.15718996,95494.0,95485.0,0.023]
[1739334699143,0.00011196,95494.0,95485.0,0.023]
[1739334699327,0.00011196,95494.0,95477.0,0.023]
[1739334699328,0.02887616,95494.0,95477.0,0.023]
[1739334699511,0.209461,95484.0,95477.0,0.023]
[1739334699871,0.157097,95483.0,95477.0,0.023]
[1739334700171,0.157094,95485.0,95477.0,0.023]
[1739334700372,0.209452,95487.0,95477.0,0.06529441]
[1739334700683,0.157094,95484.0,95477.0,0.024]
[1739334701265,0.157092,95485.0,95477.0,0.025]
[1739334701594,0.209452,95487.0,95477.0,0.024]
[1739334701792,0.0494996,95486.0,95477.0,0.024]
[1739334701994,0.209448,95490.0,95477.0,0.024]
[1739334702201,0.157094,95484.0,95477.0,0.024]
[1739334702896,0.157094,95484.0,95477.0,0.001]
[1739334703465,0.157094,95484.0,95477.0,0.002]
[1739334703466,0.165094,95484.0,95477.0,0.002]
[1739334703666,0.008,95484.0,95477.0,0.001]
[1739334703983,0.165094,95484.0,95477.0,0.001]
[1739334704504,0.01,95484.0,95477.0,0.001]
[1739334704917,0.0761,95491.0,95475.0,0.023]
[1739334705139,0.002,95484.0,95475.0,0.023]
[1739334705578,0.007,95484.0,95477.0,0.001]
[1739334705965,0.157094,95484.0,95475.0,0.023]
[1739334706205,0.157093,95485.0,95475.0,0.024]
[1739334706528,0.157093,95485.0,95475.0,0.023]
[1739334706733,0.002,95484.0,95475.0,0.023]
[1739334707229,0.209454,95486.0,95475.0,0.023]
[1739334707446,0.159092,95485.0,95475.0,0.023]
[1739334707648,0.002,95485.0,95475.0,0.023]
[1739334707827,0.0761,95491.0,95475.0,0.023]
[1739334708063,0.002,95484.0,95481.0,0.023]
[1739334708476,0.209439,95493.0,95477.0,0.001]
[1739334708760,0.007,95484.0,95477.0,0.001]
[1739334708960,0.159092,95485.0,95475.0,0.023]
[1739334709383,0.0647986,95484.0,95481.0,0.001]
[1739334709859,0.0647986,95484.0,95475.0,0.023]
[1739334709860,0.0577986,95484.0,95475.0,0.023]
[1739334710064,0.167092,95485.0,95475.0,0.024]
[1739334710664,0.157094,95484.0,95475.0,0.024]
[1739334711089,0.157099,95481.0,95475.0,0.024]
[1739334711301,0.157094,95484.0,95475.0,0.024]
[1739334711451,0.159094,95484.0,95475.0,0.023]
[1739334711653,0.2148935,95484.0,95475.0,0.023]
[1739334711914,0.007,95484.0,95481.0,0.001]
[1739334712144,0.009,95484.0,95481.0,0.001]
[1739334712339,0.002,95484.0,95475.0,0.023]
[1739334712706,0.009,95484.0,95475.0,0.024]
[1739334712927,0.007,95484.0,95475.0,0.02295292]
[1739334713142,0.157091,95486.0,95475.0,0.02195292]
[1739334713300,0.007,95484.0,95481.0,0.001]
[1739334713510,0.164094,95484.0,95481.0,0.001]
[1739334713710,0.157097,95482.0,95481.0,0.001]
[1739334713934,0.164095,95484.0,95481.0,0.001]
[1739334714401,0.166095,95484.0,95481.0,0.001]
[1739334714624,0.157095,95484.0,95473.0,0.02100712]
[1739334714802,0.001,95482.0,95473.0,0.02100712]
[1739334714955,0.001,95482.0,95474.0,0.023]
[1739334715157,0.007,95484.0,95475.0,0.001]
[1739334715382,0.009,95484.0,95475.0,0.001]
[1739334715581,0.002,95484.0,95474.0,0.023]
[1739334715757,0.157094,95485.0,95474.0,0.023]
[1739334715966,0.006,95482.0,95474.0,0.023]
[1739334716521,0.001,95482.0,95474.0,0.023]
[1739334716896,0.00022366,95504.0,95471.0,0.04284018]
[1739334716897,0.157105,95478.0,95471.0,0.04284018]
[1739334717095,0.157109,95475.0,95468.0,0.07136649]
[1739334717419,0.157119,95469.0,95468.0,0.07136649]
[1739334717624,0.157119,95469.0,95458.0,0.023]
[1739334717843,0.209487,95472.0,95460.0,0.173]
[1739334718041,0.157118,95470.0,95460.0,0.173]
[1739334718248,0.209487,95472.0,95460.0,0.173]
[1739334718477,0.157115,95471.0,95461.0,0.02060645]
[1739334718681,0.209472,95478.0,95462.0,0.023]
[1739334718879,0.157115,95471.0,95462.0,0.023]
[1739334720516,0.209482,95474.0,95462.0,0.023]
[1739334721050,0.157115,95471.0,95462.0,0.027]
[1739334721338,0.157115,95471.0,95462.0,0.002]
[1739334721651,0.157115,95471.0,95462.0,0.001]
[1739334721842,0.157115,95471.0,95461.0,0.02060645]
[1739334722052,0.157122,95467.0,95461.0,0.02060645]
[1739334722248,0.209467,95480.0,95462.0,0.002]
[1739334722448,0.15712,95468.0,95462.0,0.004]
[1739334722661,0.209467,95480.0,95462.0,0.004]
[1739334722862,0.03330909,95479.0,95462.0,0.004]
[1739334723067,0.03330909,95479.0,95462.0,0.002]
[1739334723068,0.00594755,95479.0,95462.0,0.002]
[1739334723266,0.157128,95463.0,95462.0,0.002]
[1739334723687,0.15325565,95463.0,95462.0,0.002]
[1739334724273,0.15713,95462.0,95461.0,0.0001066]
[1739334724619,0.15713,95462.0,95461.0,0.00555197]
[1739334724979,0.15713,95462.0,95461.0,0.00855197]
[1739334725183,0.15713,95462.0,95461.0,0.00055197]
[1739334725382,0.16313,95462.0,95461.0,0.00155197]
[1739334725600,0.16413,95462.0,95461.0,0.00155197]
[1739334725940,0.16313,95462.0,95461.0,0.00155197]
[1739334726398,0.16413,95462.0,95461.0,0.00155197]
[1739334726596,0.16288262,95462.0,95461.0,0.00155197]
[1739334728203,0.17068502,95462.0,95461.0,0.00155197]
[1739334730196,0.16288262,95462.0,95461.0,0.00155197]
[1739334730820,0.157138,95458.0,95453.0,0.04255214]
[1739334731086,0.157138,95458.0,95450.0,0.0001065]
[1739334731288,0.00744542,95462.0,95450.0,0.0001065]
[1739334731506,0.157139,95457.0,95450.0,0.0001065]
[1739334732208,0.003,95458.0,95450.0,0.04279583]
[1739334732349,0.160137,95458.0,95450.0,0.04279583]
[1739334732548,0.157137,95458.0,95450.0,0.04279583]
[1739334732751,0.002,95457.0,95450.0,0.04279583]
[1739334733375,0.002,95457.0,95453.0,0.0466]
[1739334733603,0.002,95457.0,95455.0,0.157142]
[1739334733832,0.002,95457.0,95456.0,0.10250365]
[1739334734103,0.00044542,95462.0,95456.0,0.10250365]
[1739334734475,0.004,95458.0,95456.0,0.10250365]
[1739334734867,0.00044542,95462.0,95457.0,0.157138]
[1739334735067,0.00044542,95462.0,95457.0,0.10250365]
[1739334735379,0.00744542,95462.0,95457.0,0.10250365]
[1739334735938,0.00044542,95462.0,95457.0,0.10250365]
[1739334736172,0.00744542,95462.0,95457.0,0.10350365]
[1739334736315,0.01044542,95462.0,95457.0,0.10350365]
[1739334736756,0.01044542,95462.0,95457.0,0.26064065]
[1739334736930,0.01044542,95462.0,95458.0,0.157136]
[1739334737126,0.01044542,95462.0,95457.0,0.10350365]